Cogmind - Beta 15 *** ADVENTURER MODE // 2025.10.10 @ 20:11:18 Player: Imrayya Result: Destroyed by G-67 Veteran with Field Laser Performance ------------- Evolutions (4) 2000 Regions Visited (5) 1000 Robots Destroyed (18) 90 Value Destroyed (409) 409 Prototype IDs (6) 120 Alien Tech Used (0) 0 Bonus (470) 470 TOTAL SCORE: 4089 Bonus ------- Pacifist 470 Cogmind --------- Core Integrity 0/850 Matter 89/300 Energy 80/100 System Corruption 7% Temperature Cool (0) Movement Core (150) Ox2 Location -6/Factory Parts ------- > --- POWER (3) -------- (None) > --- PROPULSION (6) --- (None) > --- UTILITY (4) ------ Advanced Visual Processing Unit > --- WEAPON (2) ------- Long-range Missile Launcher > --- INVENTORY (5) ---- IFF Parser Peak State ------------ > --- POWER ------------ Light Nuclear Core Light Nuclear Core F-cell Engine > --- PROPULSION ------- VTOL Module VTOL Module VTOL Module Improved Flight Unit Cesium-ion Thruster Xenon Bombardment Thruster > --- UTILITY ---------- Advanced Visual Processing Unit Improved Sensor Array Improved Melee Analysis Suite ECM Suite > --- WEAPON ----------- Katana Katana > --- INVENTORY -------- Micro Nuclear Core VTOL Module IFF Parser Reaction Control System Hardlight Generator [Rating: 46] Favorites ----------- Power Light Ion Engine Engine Light Ion Engine Power Core Light Nuclear Core Propulsion VTOL Module Wheel Wheel Hover Unit Hover Unit Flight Unit VTOL Module Utility Advanced Visual Processing Unit Device ECM Suite Processor Advanced Visual Processing Unit Weapon Katana Energy Gun Improved Medium Laser Launcher Long-range Missile Launcher Slashing Weapon Katana Build | -11 -10 -9 -8 -7 -6 ------- Run | Yrd Mat Mat Mat Fac Fac Slots Evolved 8 | . . 2 2 2 2 Power 2 | . . 1 1 . . Propulsion 4 | . . 1 1 1 1 Utility 2 | . . . . 1 1 Weapon . | . . . . . . Parts Attached 43 | 3 2 3 13 7 15 Power 9 | 1 . . 3 1 4 Engine 6 | 1 . . 3 . 2 Core 3 | . . . . 1 2 Reactor . | . . . . . . Propulsion 17 | 2 . 2 6 2 5 Treads . | . . . . . . Leg . | . . . . . . Wheel 3 | 2 . . . . 1 Hover 2 | . . 1 1 . . Flight 12 | . . 1 5 2 4 Utility 10 | . 2 . 2 4 2 Device 8 | . 2 . 1 3 2 Storage . | . . . . . . Processor 2 | . . . 1 1 . Hackware . | . . . . . . Protection . | . . . . . . Artifact . | . . . . . . Weapon 7 | . . 1 2 . 4 Energy Gun 1 | . . 1 . . . Energy Cannon . | . . . . . . Ballistic Gun . | . . . . . . Ballistic Cannon . | . . . . . . Launcher 4 | . . . . . 4 Special Weapon . | . . . . . . Impact Weapon . | . . . . . . Slashing Weapon 2 | . . . 2 . . Piercing Weapon . | . . . . . . Special Melee Weapon . | . . . . . . Unidentified Prototypes 4 | . . 1 2 . 1 Parts Lost 31 | . 2 2 6 . 21 Power 8 | . 1 . 1 . 6 Propulsion 14 | . 1 1 4 . 8 Utility 5 | . . 1 . . 4 Weapon 4 | . . . 1 . 3 Highest Loss Streak 10 | . 2 2 5 . 10 To Critical Strikes . | . . . . . . Average Backups 4 | 2 4 4 4 4 3 Power . | . . . . . . Propulsion . | . . . . . . Utility 2 | . 1 2 1 2 2 Weapon 1 | 1 3 2 2 . . Tool/Special . | . . . . . . Unused Backups 7 | . . 1 2 3 1 Power . | . . . . . . Propulsion . | . . . . . . Utility 4 | . . . 2 1 1 Weapon 3 | . . 1 . 2 . Tool/Special . | . . . . . . Average Slot Usage (%) 66 | . 45 53 64 87 65 Engine 7 | . 12 . 9 15 5 Core 1 | . . . . 1 3 Wheel 3 | . 26 10 . . . Hover 3 | . . 11 9 . . Flight 19 | . . 7 18 31 23 Device 11 | . 6 21 11 11 9 Processor 7 | . . . 5 10 11 Energy Gun 2 | . . 3 7 . . Slashing Weapon 6 | . . . 3 15 9 Peak Build Rating 46 | 3 5 9 20 31 46 Average Rating 19 | 1 3 6 16 23 29 On Entrance 10 | . 3 3 7 20 31 Naked Turns . | . . . . . . Heaviest Build 29 | 3 5 5 12 18 29 Greatest Support 28 | 20 20 10 23 23 28 Greatest Overweight (x) 5 | . . 1 1 . 5 Average Overweight (x) . | . . . . . . Largest Inventory Capacity 5 | 5 5 5 5 5 5 Average Capacity 5 | 5 5 5 5 5 5 Most Carried 5 | 5 5 5 5 5 5 Average Carried 4 | 3 4 4 4 4 3 Final Capacity 5 | 5 5 5 5 5 5 Final Carried 5 | 4 5 5 5 5 1 Class Distribution -------------------- 50% | Mutant 28% | Scavenger-Sprinter 14% | Sprinter 5% | Gladiator Dominant Class ---------------- Mutant | -10/Materials Mutant | -9/Materials Mutant | -8/Materials Scavenger-Sprinter | -7/Factory Sprinter | -6/Factory Resources | -11 -10 -9 -8 -7 -6 ----------- Run | Yrd Mat Mat Mat Fac Fac Matter Collected 458 | 190 . . 124 . 144 Remotely . | . . . . . . Salvage Created 414 | . . . 135 . 279 Parts 31 | . . . 13 . 18 Haulers Intercepted . | . . . . . . Recyclers Shooed . | . . . . . . Parts Field Recycled . | . . . . . . Retrieved Matter . | . . . . . . Parts Self-Destructed . | . . . . . . Prevented . | . . . . . . Kills | -11 -10 -9 -8 -7 -6 ------- Run | Yrd Mat Mat Mat Fac Fac Combat Hostiles Destroyed 17 | . . . 9 . 8 Melee 14 | . . . 9 . 5 AOE 3 | . . . . . 3 Classes Destroyed 4 | . . . 1 . 3 Worker 1 | . . . . . 1 Swarmer 13 | . . . 9 . 4 Grunt 3 | . . . . . 3 Programmer 1 | . . . . . 1 Best Kill Streak 9 | . . . 9 . 4 Combat Bots Only 9 | . . . 9 . 4 Max Kills in Single Turn 2 | . . . 1 . 2 Gunslinging . | . . . . . . Exploded 1 | . . . . . 1 Melee 1 | . . . 1 . 1 Uniques/NPCs Destroyed . | . . . . . . Combat | -11 -10 -9 -8 -7 -6 -------- Run | Yrd Mat Mat Mat Fac Fac Hostile Shots Fired 465 | . 20 28 101 12 304 Missed 191 | . 6 13 39 9 124 Hits 274 | . 14 15 62 3 180 Projectile 274 | . 14 15 62 3 180 Critical Strikes 10 | . 1 . 2 . 7 Damage Taken 2705 | . 149 147 481 21 1907 Core 1161 | . 36 72 183 13 857 Absorbed by Shields 68 | . . . . . 68 Ignored by Resistances 823 | . 47 45 149 6 576 Core Remaining (%) 86 | 100 85 82 66 98 . Volleys Fired 5 | . . . 1 . 4 Largest 2 | . . . 1 . 2 Hottest 86 | . . . 56 . 86 Shots Fired 7 | . . . 1 . 6 Gun 1 | . . . 1 . . Cannon . | . . . . . . Launcher 6 | . . . . . 6 Special . | . . . . . . Kinetic . | . . . . . . Thermal 1 | . . . 1 . . Explosive 6 | . . . . . 6 Electromagnetic . | . . . . . . Robot Hit Streak 3 | . . . 1 . 3 Robot Miss Streak 1 | . . . . . 1 Penetration Max . | . . . . . . Secondary Targets . | . . . . . . Shots Hit Robots 33 | . . . 16 . 17 Core Hits 33 | . . . 10 . 23 Critical Kills . | . . . . . . Critical Parts Destroyed . | . . . . . . Critical Strikes 3 | . . . 2 . 1 Sever 3 | . . . 2 . 1 Melee Attacks 32 | . . . 16 . 16 Impact . | . . . . . . Slashing 32 | . . . 16 . 16 Piercing . | . . . . . . Sneak Attacks 5 | . . . . . 5 Combat Hostiles . | . . . . . . Follow-up Attacks 1 | . . . . . 1 Damage Inflicted 2314 | . . . 484 . 1830 Guns 16 | . . . 16 . . Cannons . | . . . . . . Explosions 1153 | . . . . . 1153 Melee 1140 | . . . 468 . 672 Ramming 5 | . . . . . 5 Kinetic . | . . . . . . Thermal 16 | . . . 16 . . Explosive 1153 | . . . . . 1153 Electromagnetic . | . . . . . . Impact . | . . . . . . Slashing 1140 | . . . 468 . 672 Piercing . | . . . . . . Highest Corruption 7 | . . . . . 7 Average Corruption 4 | . . . . . 4 Corruption Purged . | . . . . . . Corruption Blocked . | . . . . . . Effects 4 | . . . . . 4 Matter Fused 1 | . . . . . 1 Heat Flow Errors 1 | . . . . . 1 Energy Discharges 1 | . . . . . 1 Data Loss (major) 1 | . . . . . 1 Overload Shots . | . . . . . . Overflow Damage 103 | . . . 15 . 88 Projectiles . | . . . . . . Explosions 35 | . . . . . 35 Melee 68 | . . . 15 . 53 Knockbacks . | . . . . . . Impact . | . . . . . . Kinetic . | . . . . . . Secondary . | . . . . . . Self-Inflicted Damage 47 | . . . . . 47 Shots 2 | . . . . . 2 Rammed 1 | . . . . . 1 Targets Rammed 1 | . . . . . 1 Kicked . | . . . . . . Crushed . | . . . . . . Highest Temperature 416 | . 2 . 14 162 416 Average Temperature 129 | . 2 . 7 71 147 Received Heat Transfer 852 | . 126 84 153 9 480 Effects 4 | . . . . . 4 Shutdowns 1 | . . . . . 1 Matter Decay 1 | . . . . . 1 Short Circuit 1 | . . . . . 1 Damage (minor) 1 | . . . . . 1 Siege Activations . | . . . . . . Martial Activations . | . . . . . . Shielding Activations . | . . . . . . Robots Disrupted . | . . . . . . Combat Hostiles . | . . . . . . Robots Corrupted . | . . . . . . Combat Hostiles . | . . . . . . Parts Fried . | . . . . . . Impact Corruptions . | . . . . . . Robots Melted . | . . . . . . Combat Hostiles . | . . . . . . Parts Melted . | . . . . . . Heat Transferred 37 | . . . 37 . . Parts Sabotaged . | . . . . . . Parts Stolen . | . . . . . . Parts Stripped . | . . . . . . Power Chain Reactions . | . . . . . . Alert | -11 -10 -9 -8 -7 -6 ------- Run | Yrd Mat Mat Mat Fac Fac Maximum Alert Level 1 | . . . 1 . . Low Security (%) 95 | 100 100 100 76 100 100 Level 1 4 | . . . 23 . . Level 2 . | . . . . . . Level 3 . | . . . . . . Level 4 . | . . . . . . Level 5 . | . . . . . . High Security . | . . . . . . Max Security . | . . . . . . Peak Influence 360 | . 15 40 360 136 167 Initial 136 | . . . 3 136 22 Average 67 | . 1 10 94 98 80 Influence Increases 1047 | . 15 60 484 19 469 Destroy 0b10 Robot/C 340 | . . . 180 . 160 Destroy 0b10 Robot/NC 10 | . . . . . 10 Destroy Leader 50 | . . . 30 . 20 Successful Hack 8 | . . . 4 4 . Destroy Structure 39 | . . . . . 39 Partial Spotted 120 | . . 15 45 . 60 Lose Combat Pursuer 480 | . 15 45 225 15 180 Influence Decreases 966 | . 15 50 144 314 443 Entered New Map 254 | . . . 7 214 33 Time Decay 407 | . . 30 77 100 200 Lost Part 305 | . 15 20 60 . 210 Squads Dispatched 9 | . 1 1 2 1 4 Investigation 3 | . 1 . . 1 1 Extermination 1 | . . . . . 1 Reinforcement 5 | . . 1 2 . 2 Assault . | . . . . . . Garrison . | . . . . . . Intercept . | . . . . . . Searches Triggered . | . . . . . . Construction Impeded . | . . . . . . Haulers Reinforced . | . . . . . . Active Scanning Responses . | . . . . . . Cargo Convoy Interrupts . | . . . . . . Stealth | -11 -10 -9 -8 -7 -6 --------- Run | Yrd Mat Mat Mat Fac Fac Distress Signals 5 | . . 1 2 . 2 Communications Jammed . | . . . . . . Distress Signals . | . . . . . . Times Spotted 82 | . 4 7 34 8 29 Peak Tracking Total 18 | . 3 6 18 4 8 Tactical Retreats 14 | . 1 3 4 2 4 Traps | -11 -10 -9 -8 -7 -6 ------- Run | Yrd Mat Mat Mat Fac Fac Traps Triggered 2 | . . . . . 2 Indirectly . | . . . . . . Trap Hack Attempts . | . . . . . . Triggered . | . . . . . . Disarmed . | . . . . . . Reprogrammed . | . . . . . . Reused . | . . . . . . Traps Extracted . | . . . . . . Installed . | . . . . . . Triggered . | . . . . . . Machines | -11 -10 -9 -8 -7 -6 ---------- Run | Yrd Mat Mat Mat Fac Fac Machines Disabled . | . . . . . . Max in Single Turn . | . . . . . . Machines Repaired . | . . . . . . Machines Dismantled . | . . . . . . Machines Sabotaged . | . . . . . . Overloaded Fab Kills . | . . . . . . Hacking | -11 -10 -9 -8 -7 -6 --------- Run | Yrd Mat Mat Mat Fac Fac Machines Accessed 6 | . . . 1 3 2 Terminals 4 | . . . 1 2 1 Fabricators 1 | . . . . . 1 Repair Stations . | . . . . . . Recycling Units 1 | . . . . 1 . Scanalyzers . | . . . . . . Garrison Access . | . . . . . . Total Hacks 13 | . . . 2 7 4 Successful 10 | . . . 2 6 2 Failed 3 | . . . . 1 2 Catastrophic . | . . . . . . Database Lockouts . | . . . . . . Manual . | . . . . . . Terminals 7 | . . . 2 3 2 Fabricators 2 | . . . . . 2 Repair Stations . | . . . . . . Recycling Units 4 | . . . . 4 . Scanalyzers . | . . . . . . Garrison Access . | . . . . . . Terminal Hacks 5 | . . . 2 2 1 Record 1 | . . . . . 1 Prototype ID Bank 1 | . . . . 1 . Alert Level 1 | . . . 1 . . Hauler Manifests 1 | . . . . 1 . Zone Layout 1 | . . . 1 . . Fabricator Hacks 1 | . . . . . 1 Build 1 | . . . . . 1 Repair Station Hacks . | . . . . . . Recycling Unit Hacks 4 | . . . . 4 . Process 1 | . . . . 1 . Report Inventory 1 | . . . . 1 . Retrieve Matter 2 | . . . . 2 . Scanalyzer . | . . . . . . Garrison Access Hacks . | . . . . . . Unauthorized Hacks . | . . . . . . Terminals . | . . . . . . Fabricators . | . . . . . . Repair Stations . | . . . . . . Recycling Units . | . . . . . . Scanalyzers . | . . . . . . Garrison Access . | . . . . . . Data Cores Recovered . | . . . . . . Used . | . . . . . . Hacking Detections 5 | . . . 1 3 1 Full Trace Events 1 | . . . . 1 . Feedback Events . | . . . . . . Feedback Blocked . | . . . . . . Robot Schematics Acquired . | . . . . . . Robots Built . | . . . . . . Authchips . | . . . . . . Time . | . . . . . . Total Robot Build Rating . | . . . . . . Part Schematics Acquired . | . . . . . . Parts Built 2 | . . . . . 2 Authchips . | . . . . . . Time 95 | . . . . . 95 Total Part Build Rating 10 | . . . . . 10 Parts Repaired . | . . . . . . Time . | . . . . . . Parts Recycled . | . . . . . . Recycled Matter 1 | . . . . 1 . Retrieved Matter 1 | . . . . 1 . Retrieved Components . | . . . . . . Parts Scanalyzed . | . . . . . . Part Schematics Acquired . | . . . . . . Parts Damaged . | . . . . . . Bothacking | -11 -10 -9 -8 -7 -6 ------------ Run | Yrd Mat Mat Mat Fac Fac Used RIF Installer . | . . . . . . Robots Hacked . | . . . . . . Non-combat . | . . . . . . Combat . | . . . . . . Robot Hacks Applied . | . . . . . . Relay Couplers Released . | . . . . . . Fabnet Peak Effective % . | . . . . . . Robots Rewired . | . . . . . . Allies Hacked . | . . . . . . Hacks Repelled . | . . . . . . Allies | -11 -10 -9 -8 -7 -6 -------- Run | Yrd Mat Mat Mat Fac Fac Total Allies . | . . . . . . Largest Group . | . . . . . . Highest-Rated Group . | . . . . . . Highest-Rated Ally . | . . . . . . Total Orders . | . . . . . . Ally Attacks . | . . . . . . Total Damage . | . . . . . . Kills . | . . . . . . Allies Corrupted . | . . . . . . Allies Melted . | . . . . . . Intel | -11 -10 -9 -8 -7 -6 ------- Run | Yrd Mat Mat Mat Fac Fac Active Infowar (turns) 1029 | . 28 165 224 209 403 Optics 753 | . . . 141 209 403 Sensors 336 | . 28 154 . 1 153 Structural 270 | . 22 165 83 . . ECM 201 | . . . . 43 158 Robot Analysis Total . | . . . . . . Derelict Logs Recovered . | . . . . . . Drone Launches . | . . . . . . Drone Recoveries . | . . . . . . Exploration | -11 -10 -9 -8 -7 -6 ------------- Run | Yrd Mat Mat Mat Fac Fac Turns Passed 1132 | 41 86 165 228 209 403 Spaces Moved 2141 | 41 103 295 461 559 682 Core 136 | 4 . . . . 132 Treads . | . . . . . . Legs . | . . . . . . Wheels 202 | 37 103 41 . . 21 Hover . | . . . . . . Flight 1803 | . . 254 461 559 529 Fastest Speed 20 | 50 80 35 31 26 20 Average Speed 40 | 77 80 53 34 29 39 Slowest Speed 355 | 80 80 120 109 31 355 Overloaded Moves . | . . . . . . Propulsion Burnouts . | . . . . . . Robots Hopped 8 | . . 1 4 . 3 Potential Cave-ins . | . . . . . . Cave-ins Triggered . | . . . . . . Exploration Rate (%) 30 | 3 26 36 66 25 24 Regions Visited 5 Branch Regions . Pre-discovered Areas . | . . . . . . Known Exits Taken . | . . . . . . Unknown Exits Taken 5 | 1 1 1 1 1 . Scrap Searched . | . . . . . . Spaces Dug . | . . . . . . Terrain Destroyed 47 | . . . . . 47 Melee . | . . . . . . Projectile . | . . . . . . AOE 47 | . . . . . 47 Terrain Rammed . | . . . . . . Walls Destroyed . | . . . . . . Machines Disabled . | . . . . . . Actions | -11 -10 -9 -8 -7 -6 --------- Run | Yrd Mat Mat Mat Fac Fac Total 2339 | 50 105 300 497 602 785 Wait 59 | . . 1 . 24 34 Move 2121 | 40 102 292 452 558 677 Hop 7 | . . 1 4 . 2 Pick Up 30 | 7 1 2 4 6 10 Fast Attach 22 | . 2 2 12 2 4 Attach 23 | 3 . 1 3 3 13 Detach 3 | . . . 1 1 1 Swap 5 | . . . . 2 3 Drop 20 | . . 1 4 6 9 Fire 5 | . . . 1 . 4 Melee 31 | . . . 16 . 15 Ram 1 | . . . . . 1 Kick . | . . . . . . Crush . | . . . . . . Escape Stasis 12 | . . . . . 12 Rewire . | . . . . . . Trap . | . . . . . . Miscellaneous . | . . . . . . Route ------- -11/Scrapyard -10/Materials -9/Materials -8/Materials (discovered 2 exits: *Fac / [*Sto]) -7/Factory -6/Factory (discovered 2 exits: [*Fac] / [*Low]) History --------- Turn | Location | Event 2 | -11/Scrapyard | Met Revision 17 19 | -11/Scrapyard | Discovered new exit (range 16) 42 | -11/Scrapyard | Entered Materials 43 | -10/Materials | Met a group of wandering Federalists 91 | -10/Materials | Discovered new exit (range 16) 128 | -10/Materials | Entered another Materials area 128 | -9/Materials | Evolved 2 slots: Power x1, Propulsion x1 285 | -9/Materials | Discovered new exit (range 16) 293 | -9/Materials | Entered another Materials area 293 | -8/Materials | Evolved 2 slots: Power x1, Propulsion x1 304 | -8/Materials | Build established: Mutant 425 | -8/Materials | Discovered new exit (range 18) 448 | -8/Materials | Discovered new exit (range 19) 517 | -8/Materials | Destroyed 9 combat bots 521 | -8/Materials | Entered Factory 521 | -7/Factory | Evolved 2 slots: Propulsion x1, Utility x1 526 | -7/Factory | Lost 5 parts (1p3n1w) 726 | -7/Factory | Discovered new exit (range 8) 730 | -7/Factory | Entered another Factory area 730 | -6/Factory | Evolved 2 slots: Propulsion x1, Utility x1 756 | -6/Factory | Discovered new exit (range 9) 783 | -6/Factory | Build established: Scavenger-Sprinter 1000 | -6/Factory | Fabricated Imp. Cryofiber Web? 1041 | -6/Factory | Lost 10 parts (2p7n1u) 1078 | -6/Factory | Core integrity fell below 50% 1108 | -6/Factory | Lost 4 parts (1p3u) 1123 | -6/Factory | Discovered new exit (range 15) 1126 | -6/Factory | Core integrity fell below 20% 1133 | -6/Factory | Destroyed by G-67 Veteran with Field Laser Last Messages --------------- 01116_ Critical hit (Burn: +37). 01118_ The unstable cave ceiling collapses. 01118_ Destroyed Plasma Rifle. 01118_ Destroyed Shock Rifle. 01118_ G-50 Soldier destroyed. 01120_ System corrupted: Heat flow error (+214). 01121_ The unstable cave ceiling collapses. 01122_ Lrn. Missile Launcher destroyed. 01123_ EXIT=FOUND 01123_ Critical hit (Burn: +37). 01123_ Acquired Lgt. Angular Momentum Engine. 01125_ Arm. Wheel destroyed. 01125_ Acquired Lrn. Missile Launcher. 01129_ The unstable cave ceiling collapses. 01129_ M-28 Smith repairs G-50 Soldier. 01131_ The unstable cave ceiling collapses. 01131_ Lrn. Missile Launcher destroyed. 01131_ Lgt. Angular Momentum Engine destroyed. 01132_ Acquired Lrn. Missile Launcher. 01132_ M-28 Smith repairs Y-54 Guardian. Map ----- +----------------------------------------------------+ | ?????????????????????????????????????????????????? | | ?????????????????????????????????????????????????? | | ?????????????????????????????????????????????????? | | ????????????????????????????????????????########## | | ????????????????????????????????????????# | | ????????????????????????????????????????# ######## | | ????????????????????????????????????????# #??????# | | ????????????????????????????????????????# #??????# | | ????????????????????????????????????????# #??????# | | ????????????????????????????????????????# #??????# | | ???????????????????###???????????######## #??????# | | ???????????????????# ???????????# # #??????# | | ????????????????????